bitfinex/quotes_ETHUSD_20250705
["timestamp","ask_amount","ask_price","bid_price","bid_amount"]
[1751746071584,22.35061633,2509.4,2509.3,1e-08]
[1751746072483,22.35061633,2509.4,2509.0,0.001]
[1751746072686,22.35061633,2509.4,2508.8,0.002]
[1751746072687,14.30741051,2508.9,2508.8,1e-08]
[1751746072886,22.35741051,2508.9,2508.8,1e-08]
[1751746080293,22.56534383,2508.9,2508.8,1e-08]
[1751746081163,22.56534383,2508.9,2508.5,0.002]
[1751746081164,0.3216,2508.6,2508.5,0.002]
[1751746081364,14.30804608,2508.5,2508.4,1e-08]
[1751746082276,14.30804608,2508.5,2507.4,0.045186]
[1751746082277,0.3216,2508.4,2507.4,0.045186]
[1751746082577,3.98803589,2507.5,2507.4,0.002]
[1751746082780,12.66526628,2507.5,2507.4,0.002]
[1751746083177,22.66526628,2507.5,2507.4,0.002]
[1751746084703,12.66526628,2507.5,2507.4,0.7787]
[1751746084865,12.12303589,2507.5,2507.4,0.7787]
[1751746085690,12.12403589,2507.5,2507.4,0.7787]
[1751746086398,3.98803589,2507.5,2507.4,0.7787]
[1751746086597,12.12303589,2507.5,2507.4,0.002]
[1751746088604,8.135,2507.5,2507.4,0.002]
[1751746088806,12.12303589,2507.5,2507.4,0.002]
[1751746089604,3.98766296,2507.8,2507.5,0.8224]
[1751746089913,8.133,2507.7,2507.5,0.8224]
[1751746090611,12.12073535,2507.7,2507.5,0.8224]
[1751746093117,14.30855531,2508.2,2507.5,0.8224]
[1751746093118,10.0,2508.0,2507.5,0.8224]
[1751746093317,3.98733422,2508.0,2507.5,4.81043365]
[1751746093522,3.9871466,2508.1,2507.6,4.8070656]
[1751746093693,12.1162816,2508.0,2507.6,0.8192]
[1751746094983,3.9872816,2508.0,2507.6,0.8192]
[1751746095186,8.128,2507.9,2507.7,0.8132]
[1751746095403,8.128,2507.8,2507.7,0.8132]
[1751746095817,8.127,2507.8,2507.7,0.8132]
[1751746098521,3.98775211,2507.7,2507.5,0.8132]
[1751746098724,12.11187685,2507.6,2507.5,0.8132]
[1751746098898,12.11187685,2507.6,2507.4,0.002]
[1751746099102,3.98803589,2507.5,2507.4,0.002]
[1751746100008,12.11203061,2507.6,2507.4,0.002]
[1751746101130,8.124,2507.6,2507.4,0.002]
[1751746101625,12.11190406,2507.6,2507.4,0.002]
[1751746101821,8.124,2507.6,2507.4,0.002]
[1751746102741,12.11193161,2507.6,2507.4,0.002]
[1751746105216,3.98803589,2507.5,2507.4,0.002]
[1751746105943,5.14810351,2507.5,2507.4,0.002]
[1751746110541,5.35612996,2507.5,2507.4,0.002]
[1751746112161,5.67772996,2507.5,2507.4,0.002]
[1751746114276,15.67772996,2507.5,2507.4,0.002]
[1751746115179,15.67772996,2507.5,2507.4,1e-08]
[1751746115385,14.30979494,2507.4,2507.3,1e-08]
[1751746115679,3.98851308,2507.2,2507.1,0.02]
[1751746115880,12.10551308,2507.2,2507.1,0.02]
[1751746117273,22.10551308,2507.2,2507.1,0.02]
[1751746117440,22.91821308,2507.2,2507.1,0.02]
[1751746122479,13.98867217,2507.1,2506.8,0.068548]
[1751746122658,22.42043127,2507.0,2506.8,0.068548]
[1751746123365,22.42043127,2507.0,2506.9,1e-08]
[1751746123683,23.58049889,2507.0,2506.9,1e-08]
[1751746125797,15.47049889,2507.0,2506.9,1e-08]
[1751746126000,23.57949889,2507.0,2506.9,1e-08]
[1751746126515,23.57849889,2507.0,2506.9,1e-08]
[1751746129891,23.25389889,2507.0,2506.9,1e-08]
[1751746130092,23.25289889,2507.0,2506.9,1e-08]
[1751746131908,15.14889889,2507.0,2506.9,1e-08]
[1751746132086,23.25289889,2507.0,2506.9,1e-08]
[1751746136479,23.46097305,2507.0,2506.9,1e-08]
[1751746137113,13.98899038,2506.9,2506.8,0.068548]
[1751746137410,15.81836286,2506.9,2506.8,0.068548]
[1751746139427,23.91536286,2506.9,2506.8,0.068548]
[1751746140027,23.91336286,2506.9,2506.8,0.068548]
[1751746142025,24.23496286,2506.9,2506.8,0.068548]
[1751746144127,15.81836286,2506.9,2506.8,0.068548]
[1751746144322,23.91036286,2506.9,2506.8,0.068548]
[1751746145108,23.91036286,2506.9,2506.8,0.0566502]
[1751746151734,15.81836286,2506.9,2506.8,0.0566502]
[1751746151933,23.90536286,2506.9,2506.8,0.0566502]
[1751746157345,15.81836286,2506.9,2506.8,0.0566502]
[1751746157550,23.89936286,2506.9,2506.8,0.0566502]
[1751746158934,24.22096286,2506.9,2506.8,0.0566502]
[1751746160148,22.06799038,2506.9,2506.8,0.8562502]
[1751746160836,22.06699038,2506.9,2506.8,0.8562502]
[1751746161417,13.98899038,2506.9,2506.8,0.8562502]
[1751746161615,22.06699038,2506.9,2506.8,0.0566502]
[1751746161920,24.69347996,2506.9,2506.8,0.0566502]
[1751746162838,16.61547996,2506.9,2506.8,0.0566502]
[1751746163045,24.69347996,2506.9,2506.8,0.0566502]
[1751746164261,16.61547996,2506.9,2506.8,0.0566502]
[1751746164437,24.69247996,2506.9,2506.8,0.0566502]
[1751746165658,24.69047996,2506.9,2506.8,0.0566502]
[1751746165968,24.68947996,2506.9,2506.8,0.0566502]
[1751746166963,16.61547996,2506.9,2506.8,0.0566502]
[1751746167162,24.68847996,2506.9,2506.8,0.0566502]
[1751746171769,25.8593089,2506.9,2506.8,1e-08]
[1751746172067,33.9313089,2506.9,2506.8,1e-08]
[1751746172266,25.00907996,2506.9,2506.8,1e-08]
[1751746172767,16.93807996,2506.9,2506.8,1e-08]
[1751746173071,24.68647996,2506.9,2506.8,1e-08]
[1751746173448,24.68547996,2506.9,2506.8,1e-08]
[1751746173743,3.98914951,2506.8,2506.7,0.02]
[1751746173940,15.16480003,2506.8,2506.7,0.02]
[1751746177358,23.23180003,2506.8,2506.7,0.02]
[1751746178477,15.16480003,2506.8,2506.7,0.02]
[1751746178777,23.23180003,2506.8,2506.7,0.02]
[1751746179275,23.22980003,2506.8,2506.7,0.02]
[1751746179977,15.16480003,2506.8,2506.7,0.02]
[1751746180161,23.22980003,2506.8,2506.7,0.02]
[1751746181382,15.16480003,2506.8,2506.7,0.02]
[1751746181592,23.22980003,2506.8,2506.7,0.02]
[1751746181882,23.22880003,2506.8,2506.7,0.02]
[1751746183092,13.22880003,2506.8,2506.7,0.02]
[1751746183273,12.05314951,2506.8,2506.7,0.02]
[1751746194620,12.37474951,2506.8,2506.7,0.02]
[1751746196819,12.05314951,2506.8,2506.7,0.02]
[1751746197322,12.04414951,2506.8,2506.7,0.02]
[1751746199153,4.00659865,2506.7,2506.6,0.02]
[1751746200045,12.06059865,2506.7,2506.6,0.02]
[1751746206236,13.66567347,2506.7,2506.6,0.02]
[1751746206941,13.64838347,2506.7,2506.6,0.02]
[1751746214224,12.04330865,2506.7,2506.6,0.02]
[1751746214743,3.98930865,2506.7,2506.6,0.02]
[1751746214945,0.001,2506.7,2506.6,0.02]
[1751746215116,8.055,2506.7,2506.6,0.02]
[1751746216219,12.04430865,2506.7,2506.6,0.02]
[1751746223552,8.055,2506.7,2506.6,0.02]
[1751746224353,0.001,2506.7,2506.6,0.02]
[1751746224553,8.054,2506.7,2506.6,0.02]
[1751746226725,0.001,2506.7,2506.6,0.02]
[1751746228855,0.001,2506.7,2506.6,5.0448454]
[1751746229058,0.001,2506.7,2506.6,5.84014007]
[1751746229227,0.001,2506.7,2506.6,15.84014007]
[1751746229430,0.001,2506.7,2506.6,15.8002454]
[1751746229928,0.001,2506.7,2506.6,24.71730993]
[1751746230331,0.001,2506.7,2506.6,32.77030993]
[1751746233360,0.001,2506.7,2506.6,15.8002454]
[1751746233561,0.001,2506.7,2506.6,2.7324]
[1751746233863,0.001,2506.7,2506.6,1.977]
[1751746235360,3.99030865,2506.7,2506.6,0.02]
[1751746239179,12.36390865,2506.7,2506.6,0.02]
[1751746240168,12.04230865,2506.7,2506.6,0.02]
[1751746240473,13.967155,2506.7,2506.6,0.02]
[1751746244060,23.967155,2506.7,2506.6,0.02]
[1751746249745,24.17524228,2506.7,2506.6,0.02]
[1751746264611,14.3110678,2506.6,2506.5,1e-08]
[1751746271425,14.3110678,2506.6,2505.9,0.0435603]
[1751746271426,3.99042298,2506.0,2505.9,0.0435603]
[1751746271590,3.99042298,2506.0,2505.4,0.0435603]
[1751746271591,10.0,2505.9,2505.4,0.0435603]
[1751746271786,3.99121931,2505.5,2505.4,0.8019603]
[1751746271986,12.04321931,2505.5,2505.4,0.8019603]
[1751746272222,3.99121931,2505.5,2505.4,0.8019603]
[1751746272390,12.04321931,2505.5,2505.4,0.8019603]
[1751746273222,3.99116746,2505.6,2505.4,0.8019603]
[1751746273426,8.052,2505.5,2505.4,0.8019603]
[1751746273592,8.052,2505.6,2505.4,0.8019603]
[1751746275723,12.04308093,2505.6,2505.4,0.8019603]
[1751746278536,12.04308093,2505.6,2505.4,0.8039603]
[1751746279437,8.053,2505.6,2505.4,0.8039603]
[1751746279632,0.20816758,2505.8,2505.4,0.8039603]
[1751746279797,8.053,2505.8,2505.6,0.7584]
[1751746281928,12.0436311,2505.9,2505.6,0.7584]
[1751746285227,3.9906311,2505.9,2505.6,0.7584]
[1751746285409,12.0436311,2505.9,2505.6,0.7584]
[1751746286000,8.053,2505.9,2505.6,0.7584]
[1751746287622,12.04359297,2505.9,2505.6,0.7584]
[1751746290226,3.99051226,2506.0,2505.6,0.7584]
[1751746290431,8.053,2505.9,2505.6,0.7584]
[1751746291119,0.001,2506.7,2505.7,0.7538]
[1751746291326,3.98965397,2506.5,2505.8,4.78434783]
[1751746291540,3.99002691,2506.3,2505.9,0.7538]
[1751746293238,3.99010651,2506.2,2505.9,0.7538]
[1751746294307,3.99003566,2506.3,2505.9,0.7538]
[1751746295030,3.99003566,2506.3,2505.9,4.7443722]
[1751746295820,3.99003566,2506.3,2505.9,6.7013722]
[1751746296044,3.99003566,2506.3,2505.9,2.7108]
[1751746297641,12.04287542,2506.4,2505.9,6.70135271]
[1751746298332,3.98996352,2506.3,2505.9,6.70135271]
[1751746299736,3.98996352,2506.3,2505.9,2.7108]
[1751746299940,3.99096352,2506.3,2505.9,2.7108]
[1751746302034,3.99096352,2506.3,2505.9,0.7538]
[1751746302436,3.99018275,2506.2,2505.9,0.7538]
[1751746302637,3.99018275,2506.2,2505.9,0.7008]
[1751746312360,0.001,2506.3,2505.9,0.7008]
[1751746312566,0.001,2506.3,2506.1,0.777]
[1751746317644,0.001,2506.3,2506.1,4.76723835]
[1751746320578,0.001,2506.3,2506.2,3.99010454]
[1751746320771,0.001,2506.3,2506.2,4.83730558]
[1751746321679,0.001,2506.3,2506.2,5.38730558]
[1751746321846,0.001,2506.3,2506.2,7.243746]
[1751746324489,0.001,2506.3,2506.2,7.20384496]
[1751746327083,0.001,2506.3,2506.2,7.243746]
[1751746335189,0.001,2506.3,2506.2,3.21374042]
[1751746335372,0.001,2506.3,2506.2,1.956]
[1751746345580,0.001,2506.3,2506.0,1.956]
[1751746345581,3.99095307,2506.3,2506.0,1.956]
[1751746346600,0.001,2506.3,2506.0,1.956]
[1751746346796,3.99012486,2506.2,2506.0,1.956]
[1751746347498,3.99103323,2506.3,2506.0,1.956]
[1751746349202,0.001,2506.3,2506.0,1.956]
[1751746351209,3.99094536,2506.3,2506.0,1.956]
[1751746351808,3.99010681,2506.2,2506.0,1.956]
[1751746355881,3.99026375,2506.1,2506.0,1.956]
[1751746356082,3.99100674,2506.3,2506.0,1.956]
[1751746358882,3.99098702,2506.3,2506.0,1.956]
[1751746359082,3.99021115,2506.2,2506.0,1.956]
[1751746362118,3.99103255,2506.3,2506.0,1.956]
[1751746364408,0.001,2506.2,2506.0,1.956]
[1751746370839,0.001,2506.2,2506.1,3.99026375]
[1751746370995,0.001,2506.2,2506.0,12.4374908]
[1751746372097,0.001,2506.2,2506.0,5.94634699]
[1751746372298,0.001,2506.2,2506.0,1.956]
[1751746373528,0.001,2506.2,2506.0,5.94642055]
[1751746379531,0.001,2506.2,2506.0,1.956]
[1751746384443,3.99111675,2506.2,2506.0,1.956]
[1751746385241,0.001,2506.2,2506.0,1.956]
[1751746388423,3.99112296,2506.2,2506.0,1.956]
[1751746389238,0.001,2506.2,2506.0,1.956]
[1751746397953,3.99026375,2506.1,2506.0,1.956]
[1751746398453,3.99117874,2506.2,2506.0,1.956]
[1751746398653,0.20809118,2506.1,2506.0,1.956]
[1751746402960,0.20809118,2506.1,2505.9,0.002]
[1751746405842,0.20809118,2506.1,2505.9,3.99255982]
[1751746406563,8.046,2506.2,2506.0,3.99042298]
[1751746412340,8.046,2506.2,2505.9,4.0324009]
[1751746412540,8.046,2506.2,2505.9,0.04190582]
[1751746412762,8.25409011,2506.2,2505.9,0.04190582]
[1751746414261,8.25409011,2506.2,2505.9,4.03246979]
[1751746415872,8.25409011,2506.2,2506.0,3.99040659]
[1751746416066,8.046,2506.2,2506.0,3.99040659]
[1751746416444,8.046,2506.2,2505.9,4.03241066]
[1751746419077,8.046,2506.2,2506.0,3.99033645]
[1751746421581,8.046,2506.2,2505.9,4.03240924]
[1751746422278,8.046,2506.2,2505.9,0.04190582]
[1751746423082,0.001,2506.2,2505.9,4.03246412]
[1751746424678,0.001,2506.2,2505.9,0.04190582]
[1751746425464,8.044,2506.2,2505.9,0.04190582]
[1751746426286,0.001,2506.2,2505.9,0.04190582]
[1751746426589,8.044,2506.2,2505.9,0.04190582]
[1751746427365,8.044,2506.2,2505.9,0.002]
[1751746427750,8.044,2506.2,2505.9,0.04190582]
[1751746428083,8.044,2506.2,2505.9,0.002]
[1751746428084,3.99042298,2506.0,2505.9,0.002]
[1751746428265,4.36502298,2506.0,2505.9,0.002]
[1751746437973,12.40702298,2506.0,2505.9,0.002]
[1751746438577,8.042,2506.0,2505.9,0.002]
[1751746438959,3.99120526,2506.2,2505.9,0.002]
[1751746439163,0.1992,2506.0,2505.9,0.002]
[1751746447205,8.2412,2506.0,2505.9,0.002]
[1751746447696,0.1992,2506.0,2505.9,0.002]
[1751746447898,8.2412,2506.0,2505.9,0.002]
[1751746449802,8.2422,2506.0,2505.9,0.002]
[1751746451714,8.042,2506.0,2505.9,0.8321]
[1751746457738,8.042,2506.0,2505.9,0.002]
[1751746458521,12.03242298,2506.0,2505.9,0.002]
[1751746460442,13.65469728,2506.0,2505.9,0.002]
[1751746461024,14.23741543,2506.0,2505.9,0.002]
[1751746462847,24.23741543,2506.0,2505.9,0.002]
[1751746463413,4.36581931,2505.5,2505.4,0.0455603]
[1751746463614,14.13410201,2505.5,2505.4,0.0455603]
[1751746476739,3.99121931,2505.5,2505.4,0.0455603]
[1751746477076,12.03221931,2505.5,2505.4,0.0455603]
[1751746483283,8.04,2505.5,2505.4,0.0455603]
[1751746485398,12.03121931,2505.5,2505.4,0.0455603]
[1751746485599,3.99121931,2505.5,2505.4,0.0455603]
[1751746485901,12.03121931,2505.5,2505.4,0.0455603]
[1751746486900,8.04,2505.5,2505.4,0.0455603]
[1751746491504,12.03121931,2505.5,2505.4,0.0455603]
[1751746498539,14.21108511,2505.5,2505.4,0.0455603]
[1751746500331,12.03021931,2505.5,2505.4,0.0455603]
[1751746500723,0.1992,2505.5,2505.4,0.0455603]
[1751746500912,0.001,2505.9,2505.4,0.0455603]
[1751746501113,0.001,2505.9,2505.8,11.27027625]
[1751746503916,0.001,2505.9,2505.8,4.77494147]
[1751746504245,0.001,2505.9,2505.8,0.82410741]
[1751746504727,0.001,2505.9,2505.5,6.7263985]
[1751746504930,3.99159393,2505.9,2505.5,2.05974486]
[1751746505128,12.02881476,2505.8,2505.4,2.1957603]
[1751746507119,8.038,2505.8,2505.4,2.1957603]
[1751746507829,12.02882762,2505.8,2505.4,2.1957603]
[1751746508147,3.99090967,2505.7,2505.4,2.1957603]
[1751746508748,12.02882832,2505.8,2505.4,2.1957603]
[1751746509746,8.038,2505.8,2505.4,2.1957603]
[1751746509953,8.038,2505.8,2505.4,3.29206704]
[1751746510750,12.02878337,2505.8,2505.4,3.29206704]
[1751746512445,8.038,2505.8,2505.4,3.29206704]
[1751746513359,8.038,2505.8,2505.4,7.28342889]
[1751746517566,4.19085885,2505.9,2505.4,7.28342889]
[1751746517741,8.037,2505.7,2505.4,7.28342889]
[1751746519676,8.037,2505.7,2505.4,7.32334267]
[1751746521471,4.19085885,2505.9,2505.4,7.32334267]
[1751746521675,0.2002,2505.9,2505.8,0.8309]
[1751746521876,0.001,2505.9,2505.8,4.82164147]
[1751746524046,0.001,2505.9,2505.8,0.8309]
[1751746526694,0.001,2505.9,2505.8,5.57084147]
[1751746526901,0.001,2505.9,2505.8,6.53099898]
[1751746527200,0.001,2505.9,2505.8,6.57090639]
[1751746529149,0.001,2505.9,2505.8,6.50050639]
[1751746542323,0.001,2505.9,2505.8,15.42557864]
[1751746542473,0.001,2505.9,2505.8,15.38567123]
[1751746544687,0.001,2505.9,2505.8,6.46059898]
[1751746545191,0.001,2505.9,2505.8,2.46985751]
[1751746545388,0.001,2505.9,2505.8,0.7492]
[1751746546903,0.001,2505.9,2505.8,0.1992]
[1751746549703,0.001,2505.9,2505.6,4.7949844]
[1751746549906,0.001,2505.9,2505.7,0.1992]
[1751746551211,0.001,2505.9,2505.7,0.239109]
[1751746551508,0.001,2505.9,2505.7,0.1992]
[1751746552723,3.99074147,2505.8,2505.7,0.1992]
[1751746552935,3.99100973,2505.7,2505.4,2.1957603]
[1751746553403,3.99100973,2505.7,2505.4,0.2447603]
[1751746553712,4.56462212,2505.8,2505.4,0.2447603]
[1751746554214,0.5738,2505.8,2505.4,4.23612697]
[1751746554413,4.56455431,2505.8,2505.4,0.2447603]
[1751746554608,0.5738,2505.8,2505.4,4.23613134]
[1751746556994,0.3746,2505.7,2505.4,4.23613134]
[1751746557326,0.3746,2505.7,2505.4,0.2447603]
[1751746559317,4.36550312,2505.7,2505.4,0.2447603]
[1751746559495,0.3746,2505.5,2505.4,0.0455603]
[1751746559692,4.36581931,2505.5,2505.4,0.0455603]
[1751746560518,12.39981931,2505.5,2505.4,0.0455603]
[1751746561720,0.3746,2505.5,2505.4,0.0455603]
[1751746562018,0.1992,2505.6,2505.4,0.0455603]
[1751746562339,8.034,2505.5,2505.4,0.0455603]
[1751746563726,0.1992,2505.6,2505.4,0.0455603]
[1751746563922,8.035,2505.5,2505.4,0.0455603]
[1751746564427,8.035,2505.6,2505.4,0.0455603]
[1751746564792,8.035,2505.6,2505.4,4.03693671]
[1751746567124,8.035,2505.6,2505.4,0.0455603]
[1751746568322,0.1992,2505.7,2505.4,0.0455603]
[1751746569524,8.2342,2505.7,2505.4,0.0455603]
[1751746575435,12.22514615,2505.7,2505.4,0.0455603]
[1751746576637,4.19014615,2505.7,2505.4,0.0455603]
[1751746576841,8.035,2505.6,2505.4,0.0455603]
[1751746580841,0.001,2505.9,2505.5,4.03108569]
[1751746581053,0.001,2505.9,2505.7,0.7666]
[1751746581247,0.001,2505.9,2505.7,4.75749509]
[1751746581414,0.001,2505.9,2505.7,0.7666]
[1751746581914,0.001,2505.9,2505.6,0.0399106]
[1751746582417,0.001,2505.9,2505.6,4.03096037]
[1751746584249,0.001,2505.9,2505.6,0.0399106]
[1751746585517,0.001,2505.9,2505.6,4.03095405]
[1751746585842,0.001,2505.9,2505.6,5.01699597]
[1751746587536,8.035,2505.9,2505.6,5.01699597]
[1751746591255,8.035,2505.9,2505.7,3.99089905]
[1751746592346,0.001,2505.9,2505.6,5.01692692]
[1751746592550,0.001,2505.9,2505.7,3.99089898]
[1751746594149,0.001,2505.9,2505.6,5.0169217]
[1751746603769,0.001,2505.9,2505.6,4.03087978]
[1751746603946,0.001,2505.9,2505.6,3.99096918]
[1751746604148,0.3756,2505.9,2505.6,3.99096918]
[1751746606173,0.3756,2505.9,2505.6,4.03087978]
[1751746608094,8.4086,2505.9,2505.6,4.03087978]
[1751746611290,0.3756,2505.9,2505.6,4.03087978]
[1751746611459,8.4086,2505.9,2505.6,4.03087978]
[1751746614489,0.3756,2505.9,2505.6,4.03087978]
[1751746614691,8.4076,2505.9,2505.6,4.03087978]
[1751746614988,8.4076,2505.9,2505.6,3.99096918]
[1751746617689,8.4076,2505.9,2505.5,4.19035301]
[1751746617860,8.4076,2505.9,2505.5,0.1992]
[1751746618055,12.39825123,2505.9,2505.5,0.1992]
[1751746618757,0.1992,2505.8,2505.5,3.99120898]
[1751746619079,0.1992,2505.8,2505.4,6.18404956]
[1751746620491,0.1992,2505.8,2505.5,3.9912025]
[1751746622564,0.1992,2505.8,2505.5,3.9932025]
[1751746625997,0.1992,2505.8,2505.5,0.002]
[1751746626370,0.1992,2505.8,2505.5,3.9931877]
[1751746627602,0.1992,2505.8,2505.6,3.99104544]
[1751746628403,0.1992,2505.8,2505.7,3.99090074]
[1751746628622,8.033,2505.9,2505.8,3.99074147]
[1751746631704,8.033,2505.9,2505.7,3.99084121]
[1751746633305,0.001,2505.9,2505.8,3.99074147]
[1751746634511,0.001,2505.9,2505.7,3.99082931]
[1751746635510,0.001,2505.9,2505.6,4.23008588]
[1751746635711,0.3756,2505.9,2505.6,4.19017528]
[1751746637505,0.3756,2505.9,2505.6,0.1992]
[1751746638508,0.3756,2505.9,2505.6,4.19025911]
[1751746638712,0.3756,2505.9,2505.6,4.23016971]
[1751746644816,0.3756,2505.9,2505.6,0.2391106]
[1751746646723,0.3756,2505.9,2505.6,0.1992]
[1751746648639,0.3756,2505.9,2505.6,4.19024469]
[1751746650428,0.3756,2505.9,2505.6,0.1992]
[1751746653627,4.3662162,2505.9,2505.6,0.1992]
[1751746656136,3.99100608,2505.7,2505.5,1.95]
[1751746656321,0.3746,2505.6,2505.5,1.95]
[1751746657023,0.1992,2505.7,2505.5,1.95]
[1751746658642,4.19011357,2505.7,2505.5,1.95]
[1751746660534,0.1992,2505.7,2505.5,1.95]
[1751746664741,0.1992,2505.7,2505.5,5.94119744]
[1751746669946,0.1992,2505.7,2505.5,1.95]
[1751746674050,0.1992,2505.7,2505.5,0.002]
[1751746675650,0.5738,2505.7,2505.5,0.002]
[1751746679357,0.1992,2505.7,2505.5,0.002]
[1751746680662,0.1992,2505.7,2505.5,3.9932072]
[1751746685766,8.029,2505.8,2505.7,3.99090074]
[1751746686770,8.029,2505.8,2505.6,4.7508895]
[1751746687731,8.029,2505.8,2505.6,3.9909895]
[1751746689833,8.029,2505.8,2505.5,3.99314773]
[1751746690236,8.029,2505.8,2505.6,3.99105346]
[1751746692068,0.2002,2505.9,2505.6,3.99105346]
[1751746693469,0.2002,2505.9,2505.5,0.002]
[1751746693690,0.2002,2505.9,2505.7,3.99080518]
[1751746693836,0.2002,2505.9,2505.7,4.74190518]
[1751746695277,0.2002,2505.9,2505.6,3.99099368]
[1751746695846,0.2002,2505.9,2505.7,3.99089352]
[1751746697277,0.2002,2505.9,2505.6,3.99098393]
[1751746698847,0.2002,2505.9,2505.5,5.49424398]
[1751746699783,0.2002,2505.9,2505.5,5.53415617]
[1751746699977,0.2002,2505.9,2505.6,3.99105117]
[1751746701389,0.2002,2505.9,2505.7,3.9908961]
[1751746706288,0.2002,2505.9,2505.6,3.99100671]
[1751746706585,0.2002,2505.9,2505.5,5.4942605]
[1751746707083,0.2002,2505.9,2505.6,3.99105257]
[1751746709173,0.2002,2505.9,2505.5,5.49427088]
[1751746709380,0.5748,2505.9,2505.5,5.49427088]
[1751746709679,0.5748,2505.9,2505.5,4.68767088]
[1751746710051,0.5748,2505.9,2505.5,4.72758307]
[1751746711386,0.5748,2505.9,2505.5,4.68767088]
[1751746711589,0.5748,2505.9,2505.5,4.72758307]
[1751746711886,0.5748,2505.9,2505.5,4.68767088]
[1751746712087,0.5748,2505.9,2505.5,4.72758307]
[1751746713387,0.5748,2505.9,2505.5,4.68767088]
[1751746713695,0.5748,2505.9,2505.5,4.72758307]
[1751746713885,0.5748,2505.9,2505.5,4.68767088]
[1751746714085,0.5748,2505.9,2505.5,4.72758307]
[1751746715482,0.5748,2505.9,2505.6,3.99105553]
[1751746716088,0.5748,2505.9,2505.5,4.72756102]
[1751746716988,0.5748,2505.9,2505.5,4.68764883]
[1751746717586,0.5748,2505.9,2505.5,6.67356102]
[1751746717887,0.5748,2505.9,2505.6,3.99102573]
[1751746720378,0.5748,2505.9,2505.5,6.63366815]
[1751746720702,0.5748,2505.9,2505.5,6.67358034]
[1751746721201,0.5748,2505.9,2505.5,6.63366815]
[1751746721495,0.5748,2505.9,2505.5,6.67358034]
[1751746721702,0.5748,2505.9,2505.5,6.63366815]
[1751746722004,0.5748,2505.9,2505.6,3.99105568]
[1751746722508,0.2002,2505.9,2505.7,3.99087644]
[1751746724101,0.2002,2505.9,2505.6,3.9909837]
[1751746724307,0.2002,2505.9,2505.5,6.63365629]
[1751746726606,0.2002,2505.9,2505.6,3.99105763]
[1751746730809,0.2002,2505.9,2505.7,3.99089452]
[1751746730990,0.001,2505.9,2505.7,3.99089452]
[1751746734895,0.001,2505.9,2505.6,7.6350251]
[1751746735714,0.001,2505.9,2505.7,3.99089866]
[1751746738394,0.001,2505.9,2505.6,7.63502039]
[1751746738914,0.001,2505.9,2505.6,2.83605361]
[1751746739118,0.001,2505.9,2505.6,2.1442]
[1751746739518,0.001,2505.9,2505.6,6.13525738]
[1751746750526,0.001,2505.9,2505.6,2.1442]
[1751746752729,0.001,2505.9,2505.6,6.13523625]
[1751746756442,0.001,2505.9,2505.7,3.99087315]
[1751746763671,0.001,2505.9,2505.6,6.13525229]
[1751746763831,0.001,2505.9,2505.8,3.99074147]
[1751746764234,0.001,2505.9,2505.6,2.1442]
[1751746764235,0.3746,2505.8,2505.6,2.1442]
[1751746764430,0.1992,2505.7,2505.6,1.945]
[1751746764734,4.56470074,2505.7,2505.6,1.945]
[1751746764938,4.56470074,2505.7,2505.5,0.002]
[1751746765132,13.16671807,2505.6,2505.5,0.002]
[1751746765371,29.66054841,2505.6,2505.5,0.002]
[1751746765730,25.60986588,2505.6,2505.5,1e-08]
[1751746766067,14.56501931,2505.5,2505.4,0.0455603]
[1751746766270,22.58901931,2505.5,2505.4,0.0455603]
[1751746766472,24.0839317,2505.5,2505.4,0.0455603]
[1751746784886,24.29214321,2505.5,2505.4,0.0455603]
[1751746787785,30.79050856,2505.5,2505.4,0.0455603]
[1751746792189,30.79150856,2505.5,2505.4,0.0455603]
[1751746801998,15.89454321,2505.5,2505.4,0.0455603]
[1751746802197,22.42463082,2505.5,2505.4,0.0455603]
[1751746806514,29.29759617,2505.5,2505.4,0.0455603]
[1751746809313,29.29759617,2505.5,2504.9,0.0435603]
[1751746809314,3.99201596,2505.0,2504.9,0.0435603]
[1751746809613,12.41621756,2505.0,2504.9,0.0435603]
[1751746809784,12.01701596,2505.0,2504.9,0.0435603]
[1751746809982,12.22525196,2505.0,2504.9,0.0435603]
[1751746813788,12.22525196,2505.0,2504.9,0.0455603]
[1751746817346,22.22525196,2505.0,2504.9,0.0455603]
[1751746817486,22.59985196,2505.0,2504.9,0.0455603]
[1751746817687,25.90886234,2505.0,2504.9,0.0455603]
[1751746818184,25.70062634,2505.0,2504.9,0.0455603]
[1751746819827,34.63969509,2505.0,2504.9,0.0455603]
[1751746820330,25.32602634,2505.0,2504.9,0.0455603]
[1751746823228,17.30102634,2505.0,2504.9,0.0455603]
[1751746823521,25.32702634,2505.0,2504.9,0.0455603]
[1751746823905,25.53527899,2505.0,2504.9,0.0455603]
[1751746827634,17.50927899,2505.0,2504.9,0.0455603]
[1751746827805,25.53527899,2505.0,2504.9,0.0455603]
[1751746829131,17.50927899,2505.0,2504.9,0.0455603]
[1751746829307,25.53527899,2505.0,2504.9,0.0455603]
[1751746832500,17.50927899,2505.0,2504.9,0.0455603]
[1751746832731,25.53527899,2505.0,2504.9,0.0455603]
[1751746839019,17.50927899,2505.0,2504.9,0.0455603]
[1751746839234,25.53527899,2505.0,2504.9,0.0455603]
[1751746841205,17.50927899,2505.0,2504.9,0.0455603]
[1751746841404,25.53427899,2505.0,2504.9,0.0455603]
[1751746842331,17.50927899,2505.0,2504.9,0.0455603]
[1751746842534,25.53427899,2505.0,2504.9,0.0455603]
[1751746846333,17.50927899,2505.0,2504.9,0.0455603]
[1751746846544,22.22526861,2505.0,2504.9,0.0455603]
[1751746851147,28.72513064,2505.0,2504.9,0.0455603]
[1751746859050,20.70013064,2505.0,2504.9,0.0455603]
[1751746859250,28.72513064,2505.0,2504.9,0.0455603]
[1751746860958,29.09973064,2505.0,2504.9,0.0455603]